Cogmind - Beta 13 @@@ ROGUE MODE // 2024.04.06 @ 18:15:47 Player: bob Result: Destroyed by G-47 Trooper with Particle Gun Performance ------------- Evolutions (0) 0 Regions Visited (1) 200 Robots Destroyed (4) 20 Value Destroyed (56) 56 Prototype IDs (0) 0 Alien Tech Used (0) 0 Bonus (0) 0 TOTAL SCORE: 276 Bonus ------- None Cogmind --------- Core Integrity 0/250 Matter 265/300 Energy 100/100 System Corruption 0% Temperature Cool (9) Movement Core (350) Ox6 Location -10/Materials Parts ------- > --- POWER (1) -------- (None) > --- PROPULSION (2) --- (None) > --- UTILITY (2) ------ Large Storage Unit Utility Shielding > --- WEAPON (2) ------- (None) > --- INVENTORY (15) --- Light Ion Engine Light Treads Medium Laser Peak State ------------ > --- POWER ------------ Ion Engine > --- PROPULSION ------- Aluminum Leg Aluminum Leg > --- UTILITY ---------- Small Storage Unit Large Storage Unit > --- WEAPON ----------- EM Pulse Gun Medium Laser > --- INVENTORY -------- Light Ion Engine Light Treads Light Treads Compact Wheel Compact Wheel Assault Rifle [Rating: 7] Favorites ----------- Power Ion Engine Engine Ion Engine Propulsion Aluminum Leg Treads Light Treads Leg Aluminum Leg Flight Unit Flight Unit Utility Large Storage Unit Storage Large Storage Unit Protection Utility Shielding Weapon Assault Rifle Energy Gun EM Pulse Gun Energy Cannon Light EM Pulse Cannon Ballistic Gun Assault Rifle Launcher Grenade Launcher Build | -11 -10 ------- Run | Yrd Mat Slots Evolved . | . . Power . | . . Propulsion . | . . Utility . | . . Weapon . | . . Parts Attached 9 | . 9 Power 1 | . 1 Engine 1 | . 1 Core . | . . Reactor . | . . Propulsion 2 | . 2 Treads 1 | . 1 Leg . | . . Wheel . | . . Hover . | . . Flight 1 | . 1 Utility 2 | . 2 Device . | . . Storage 1 | . 1 Processor . | . . Hackware . | . . Protection 1 | . 1 Artifact . | . . Weapon 4 | . 4 Energy Gun 1 | . 1 Energy Cannon 1 | . 1 Ballistic Gun 1 | . 1 Ballistic Cannon . | . . Launcher 1 | . 1 Special Weapon . | . . Impact Weapon . | . . Slashing Weapon . | . . Piercing Weapon . | . . Special Melee Weapon . | . . Unidentified Prototypes . | . . Parts Lost 5 | . 5 Power 1 | . 1 Propulsion 2 | . 2 Utility . | . . Weapon 2 | . 2 Highest Loss Streak 5 | . 5 To Critical Strikes . | . . Average Slot Usage (%) 57 | . 57 Engine 10 | . 10 Treads 3 | . 3 Leg 7 | . 7 Flight 2 | . 2 Storage 14 | . 14 Protection 4 | . 4 Energy Gun 3 | . 3 Ballistic Gun 6 | . 6 Launcher 4 | . 4 Naked Turns . | . . Heaviest Build 30 | 14 30 Greatest Support 20 | 20 20 Greatest Overweight (x) 8 | . 8 Average Overweight (x) 3 | . 3 Largest Inventory Capacity 15 | 8 15 Average Capacity 14 | 8 14 Most Carried 8 | 6 8 Average Carried 6 | 6 6 Final Capacity 15 | 8 15 Final Carried 6 | 6 3 Class Distribution -------------------- 100% | Mutant Dominant Class ---------------- Mutant | -10/Materials Resources | -11 -10 ----------- Run | Yrd Mat Matter Collected 237 | 183 54 Remotely . | . . Salvage Created 64 | . 64 Parts 7 | . 7 Haulers Intercepted . | . . Recyclers Shooed . | . . Parts Field Recycled . | . . Retrieved Matter . | . . Parts Self-Destructed . | . . Prevented . | . . Kills | -11 -10 ------- Run | Yrd Mat Combat Hostiles Destroyed 3 | . 3 Guns 3 | . 3 Classes Destroyed 2 | . 2 Watcher 1 | . 1 Swarmer 3 | . 3 Best Kill Streak 3 | . 3 Combat Bots Only 3 | . 3 Max Kills in Single Turn 1 | . 1 Gunslinging . | . . Exploded . | . . Melee . | . . Uniques/NPCs Destroyed . | . . Combat | -11 -10 -------- Run | Yrd Mat Hostile Shots Fired 94 | . 94 Missed 28 | . 28 Damage Taken 810 | . 810 Core 260 | . 260 Absorbed by Shields . | . . Redirected to Shielding 32 | . 32 Core Remaining (%) 100 | 100 . Volleys Fired 14 | . 14 Largest 2 | . 2 Hottest 76 | . 76 Shots Fired 15 | . 15 Gun 14 | . 14 Cannon 1 | . 1 Launcher . | . . Special . | . . Kinetic 12 | . 12 Thermal 2 | . 2 Explosive . | . . Electromagnetic 1 | . 1 Robot Hit Streak 5 | . 5 Robot Miss Streak 2 | . 2 Penetration Max . | . . Secondary Targets . | . . Shots Hit Robots 9 | . 9 Core Hits 5 | . 5 Critical Kills . | . . Critical Parts Destroyed . | . . Critical Strikes . | . . Melee Attacks . | . . Impact . | . . Slashing . | . . Piercing . | . . Sneak Attacks . | . . Combat Hostiles . | . . Follow-up Attacks . | . . Damage Inflicted 117 | . 117 Guns 117 | . 117 Cannons . | . . Explosions . | . . Melee . | . . Ramming . | . . Kinetic 91 | . 91 Thermal 26 | . 26 Explosive . | . . Electromagnetic . | . . Impact . | . . Slashing . | . . Piercing . | . . Highest Corruption . | . . Average Corruption . | . . Corruption Purged . | . . Corruption Blocked . | . . Overload Shots . | . . Overflow Damage . | . . Projectiles . | . . Explosions . | . . Melee . | . . Knockbacks . | . . Impact . | . . Kinetic . | . . Secondary . | . . Self-Inflicted Damage . | . . Shots . | . . Rammed . | . . Targets Rammed . | . . Kicked . | . . Crushed . | . . Highest Temperature 15 | . 15 Average Temperature 10 | . 10 Received Heat Transfer 408 | . 408 Siege Activations . | . . Robots Corrupted . | . . Combat Hostiles . | . . Parts Fried . | . . Impact Corruptions . | . . Robots Melted . | . . Combat Hostiles . | . . Parts Melted . | . . Heat Transferred 74 | . 74 Parts Sabotaged . | . . Parts Stolen . | . . Parts Stripped . | . . Power Chain Reactions . | . . Alert | -11 -10 ------- Run | Yrd Mat Peak Influence 70 | . 70 Initial . | . . Average 4 | . 4 Maximum Alert Level . | . . Low Security (%) 100 | 100 100 Level 1 . | . . Level 2 . | . . Level 3 . | . . Level 4 . | . . Level 5 . | . . High Security . | . . Max Security . | . . Squads Dispatched . | . . Investigation . | . . Extermination . | . . Reinforcement . | . . Assault . | . . Garrison . | . . Intercept . | . . Searches Triggered . | . . Construction Impeded . | . . Haulers Reinforced . | . . Active Scanning Responses . | . . Cargo Convoy Interrupts . | . . Stealth | -11 -10 --------- Run | Yrd Mat Distress Signals 1 | . 1 Communications Jammed . | . . Distress Signals . | . . Times Spotted 7 | . 7 Peak Tracking Total 5 | . 5 Tactical Retreats . | . . Traps | -11 -10 ------- Run | Yrd Mat Traps Triggered 2 | . 2 Indirectly . | . . Trap Hack Attempts . | . . Triggered . | . . Disarmed . | . . Reprogrammed . | . . Reused . | . . Traps Extracted . | . . Installed . | . . Triggered . | . . Machines | -11 -10 ---------- Run | Yrd Mat Machines Disabled 1 | . 1 Max in Single Turn 1 | . 1 Machines Repaired . | . . Machines Dismantled . | . . Machines Sabotaged . | . . Overloaded Fab Kills . | . . Hacking | -11 -10 --------- Run | Yrd Mat Machines Accessed 3 | . 3 Terminals 2 | . 2 Fabricators . | . . Repair Stations . | . . Recycling Units 1 | . 1 Scanalyzers . | . . Garrison Access . | . . Total Hacks 3 | . 3 Successful 3 | . 3 Failed . | . . Catastrophic . | . . Database Lockouts . | . . Manual . | . . Terminals 2 | . 2 Fabricators . | . . Repair Stations . | . . Recycling Units 1 | . 1 Scanalyzers . | . . Garrison Access . | . . Terminal Hacks 2 | . 2 Record 2 | . 2 Fabricator Hacks . | . . Repair Station Hacks . | . . Recycling Unit Hacks 1 | . 1 Retrieve Matter 1 | . 1 Scanalyzer . | . . Garrison Access Hacks . | . . Unauthorized Hacks . | . . Terminals . | . . Fabricators . | . . Repair Stations . | . . Recycling Units . | . . Scanalyzers . | . . Garrison Access . | . . Data Cores Recovered . | . . Used . | . . Hacking Detections . | . . Full Trace Events . | . . Feedback Events . | . . Feedback Blocked . | . . Robot Schematics Acquired . | . . Robots Built . | . . Authchips . | . . Time . | . . Total Robot Build Rating . | . . Part Schematics Acquired . | . . Parts Built . | . . Authchips . | . . Time . | . . Total Part Build Rating . | . . Parts Repaired . | . . Time . | . . Parts Recycled . | . . Recycled Matter . | . . Retrieved Matter 29 | . 29 Retrieved Components . | . . Parts Scanalyzed . | . . Part Schematics Acquired . | . . Parts Damaged . | . . Bothacking | -11 -10 ------------ Run | Yrd Mat Used RIF Installer . | . . Robots Hacked . | . . Non-combat . | . . Combat . | . . Robot Hacks Applied . | . . Relay Couplers Released . | . . Fabnet Peak Effective % . | . . Robots Rewired . | . . Allies Hacked . | . . Hacks Repelled . | . . Allies | -11 -10 -------- Run | Yrd Mat Total Allies . | . . Largest Group . | . . Highest-Rated Group . | . . Highest-Rated Ally . | . . Total Orders . | . . Ally Attacks . | . . Total Damage . | . . Kills . | . . Allies Corrupted . | . . Allies Melted . | . . Intel | -11 -10 ------- Run | Yrd Mat Robot Analysis Total . | . . Derelict Logs Recovered . | . . Drone Launches . | . . Drone Recoveries . | . . Exploration | -11 -10 ------------- Run | Yrd Mat Turns Passed 715 | 16 699 Spaces Moved 232 | 14 218 Core 59 | . 59 Treads 20 | . 20 Legs 133 | 14 119 Wheels . | . . Hover . | . . Flight 20 | . 20 Fastest Speed 120 | 120 120 Average Speed 288 | 120 299 Slowest Speed 540 | 120 540 Overloaded Moves . | . . Propulsion Burnouts . | . . Robots Hopped . | . . Cave-ins Triggered . | . . Exploration Rate (%) 11 | 3 20 Regions Visited 1 Branch Regions . Pre-discovered Areas . | . . Known Exits Taken . | . . Unknown Exits Taken 1 | 1 . Scrap Searched . | . . Spaces Dug . | . . Terrain Destroyed . | . . Melee . | . . Projectile . | . . AOE . | . . Terrain Rammed . | . . Walls Destroyed . | . . Machines Disabled . | . . Actions | -11 -10 --------- Run | Yrd Mat Total 267 | 13 254 Wait 4 | . 4 Move 231 | 13 218 Hop . | . . Pick Up 3 | . 3 Fast Attach 3 | . 3 Attach 6 | . 6 Detach 3 | . 3 Swap . | . . Drop 3 | . 3 Fire 14 | . 14 Melee . | . . Ram . | . . Kick . | . . Crush . | . . Escape Stasis . | . . Rewire . | . . Trap . | . . Miscellaneous . | . . Route ------- -11/Scrapyard -10/Materials History --------- Turn | Location | Event 1 | -11/Scrapyard | Discovered new exit (range 1) 17 | -11/Scrapyard | Entered Materials 315 | -10/Materials | Build established: Mutant 679 | -10/Materials | Core integrity fell below 50% 703 | -10/Materials | Core integrity fell below 20% 716 | -10/Materials | Destroyed by G-47 Trooper with Particle Gun Last Messages --------------- 00557_ Acquired Flight Unit. Flying robots can pass through spaces occupied by others, even hostile robots. 00558_ R-06 Scavenger inserts Com. Wheel into recycling unit. 00561_ R-06 Scavenger inserts EM Pulse Gun into recycling unit. 00562_ Recycling unit begins recycling process. 00569_ Connecting with Recycling Unit... >>Retrieve(Matter) Matter ejected: 29 00615_ K-01 Serf cleans the Terminal. 00629_ W-16 Scout destroyed. 00637_ K-01 Serf collects debris. 00670_ Ion Engine destroyed. 00670_ Flight Unit destroyed. 00671_ Terminal disabled. 00672_ Assault Rifle destroyed. 00672_ Lgt. Treads destroyed. 00674_ K-01 Serf collects debris. 00686_ Lgt. EM Pulse Cannon destroyed. 00710_ Critical hit (Burn: +37). Map ----- +----------------------------------------------------+ | ??????????????? ????????????????????????????????? | | ??????????????? ????????????????????????????????? | | ??????????????? ????????????????????????????????? | | ???????????????# #???????????????????????????????? | | ???????????????# #########???????????????????????? | | ???????????????# # #???????????????????????? | | ???????????????# # "" #???????????????????????? | | ???????????????# # "Y #???????????????????????? | | ????????######## # "" #???????????????????????? | | ????????# # # #???????????????????????? | | ????????# # ##+##+###???????????????????????? | | ????????# """ + #?????????????????????????? | | ????????# R" # #?????????????????????????? | | ????????#[ """ # #?????????????????????????? | | ????????# # #?????????????????????????? | | ????????######## #?????????????????????????? | | ################ g####??????????????????????? | | = #??????????????????????? | | ######################g #??????????????????????? | | #???????????????????# #??????????????????????? | | #???????????????????# #??????????????????????? | | #???????????????????#= #??????????????????????? | | #???????????????????#%! #??????????????????????? | | ##???????????????????#*! #??????????????????????? | | ?????????????????????# #??????????????????????? | | ?????????????????????# @#??????????????????????? | | ????????????????+ #??????????????????????? | | ????????????????######### #??????????????????????? | | ????????????????????????# #??????????????????????? | | ????????????????????????# #??????????????????????? | | ????????????????????????#+#??????????????????????? | | ?????????????????????????????????????????????????? | | ?????????????????????????????????????????????????? | | ?????????????????????????????????????????????????? | | ?????????????????????????????????????????????????? | | ?????????????????????????????????????????????????? | | ?????????????????????????????????????????????????? | | ?????????????????????????????????????????????????? | | ?????????????????????????????????????????????????? | | ?????????????????????????????????????????????????? | | ?????????????????????????????????????????????????? | | ?????????????????????????????????????????????????? | | ?????????????????????????????????????????????????? | | ?????????????????????????????????????????????????? | | | | | | | | | | | | | +----------------------------------------------------+ Best States ------------- Heat Dissipation 25 Energy Generation 10 Energy Capacity 250 Matter Stores 283 Matter Capacity 300 Sight Range 16 Terrain Scan Density 10 Utility Shielding 33 Evasion (%) 45 Recoil Reduction 1 Item Schematics ----------------- None Robot Schematics ------------------ None Fabricated ------------ Nothing Alien Tech Used ----------------- None Achievements -------------- None Challenges ------------ None Game ------ Seed BehemothGatlingRailgun Manual? 0 Play Time 00:08:59 Cumulative 6.7 hours Start 2024.04.06 @ 18:10:59 End 2024.04.06 @ 18:15:47 Sessions 1 Manual Loads 0 Difficulty Rogue Special Mode None Game No. 28 Rogue 1 Adventurer 27 Explorer 0 Win Type - Total 0 Types 0/0/0/0/0/0/0/0/0 Lore% 4 Gallery% 10 Achievement% 10 Wizard Run 0 Options --------- Layout 0 ASCII 0 Keyboard 1 Movement Vi Keybinds 0 Fullscreen 1 Font 18/SmallcapsGlow Map View 76x50 Zoom Use 0% Tactical HUD 1 Map Filters NONE Filters NONE Steam 1 RUN: 683f4ace-cff3-4f88-a132-5c35f434d1a1